bitfinex/quotes_BTCUSD_20250624
["timestamp","ask_amount","ask_price","bid_price","bid_amount"]
[1750783993540,0.71843796,106020.0,106010.0,0.575]
[1750783993790,0.74473796,106020.0,106010.0,0.575]
[1750783994960,0.71843796,106020.0,106010.0,0.575]
[1750783995375,0.39228215,106020.0,106010.0,0.575]
[1750783997862,0.20228215,106020.0,106010.0,0.575]
[1750783998267,0.20228215,106020.0,106010.0,0.6014]
[1750783998552,0.20228215,106020.0,106010.0,0.575]
[1750783998775,0.20228215,106020.0,106010.0,0.77309442]
[1750783998975,0.20228215,106020.0,106010.0,1.26681724]
[1750783998976,0.0042065,106020.0,106010.0,1.26681724]
[1750783999118,0.02306943,106020.0,106010.0,0.94066143]
[1750783999330,0.01363788,106020.0,106010.0,0.94066143]
[1750783999833,0.03250108,106020.0,106010.0,0.94066143]
[1750783999994,0.02306935,106020.0,106010.0,0.94066143]
[1750784000196,0.02306952,106020.0,106010.0,0.94066143]
[1750784000463,0.04193361,106020.0,106010.0,0.95330144]
[1750784000717,0.22114588,106020.0,106010.0,0.77309451]
[1750784000930,0.22114588,106020.0,106010.0,0.78252731]
[1750784001335,0.21171424,106020.0,106010.0,0.78252731]
[1750784001720,0.20228233,106020.0,106010.0,0.78252749]
[1750784001915,0.20228233,106020.0,106010.0,0.79196029]
[1750784002130,0.20228233,106020.0,106010.0,0.801393]
[1750784002548,0.0042065,106020.0,106010.0,0.9326273]
[1750784002730,0.0042065,106020.0,106010.0,1.76209291]
[1750784002937,0.0042065,106020.0,106010.0,1.1083273]
[1750784003125,0.0042065,106020.0,106010.0,1.1477673]
[1750784003322,0.0042065,106020.0,106010.0,1.47392311]
[1750784003323,0.0032065,106020.0,106010.0,1.47392311]
[1750784003566,0.0022065,106020.0,106010.0,1.28448311]
[1750784003770,0.0022065,106020.0,106010.0,1.28548311]
[1750784004084,0.0022065,106020.0,106010.0,1.47484311]
[1750784004277,0.0022065,106020.0,106010.0,1.47384311]
[1750784005060,0.0022065,106020.0,106010.0,1.47284311]
[1750784005265,0.0022065,106020.0,106010.0,1.47384311]
[1750784005698,0.0022065,106020.0,106010.0,1.53588311]
[1750784006543,0.0022065,106020.0,106010.0,1.21938967]
[1750784006745,0.0022065,106020.0,106010.0,1.56442548]
[1750784007523,0.0022065,106020.0,106010.0,1.58462548]
[1750784008592,0.0022065,106020.0,106010.0,1.00706967]
[1750784008799,0.0022065,106020.0,106010.0,1.3163273]
[1750784009050,0.0022065,106020.0,106010.0,1.64248311]
[1750784009251,0.01163788,106020.0,106010.0,1.3163273]
[1750784009536,0.01163788,106020.0,106010.0,1.2899873]
[1750784009774,0.0022065,106020.0,106010.0,1.2899873]
[1750784009962,0.01163797,106020.0,106010.0,1.2899873]
[1750784010181,0.0022065,106020.0,106010.0,1.2899873]
[1750784010391,0.01163788,106020.0,106010.0,1.2899073]
[1750784010692,0.02106943,106020.0,106010.0,1.2899073]
[1750784010846,0.03050107,106020.0,106010.0,1.2899073]
[1750784011041,0.01163788,106020.0,106010.0,1.1009073]
[1750784011226,0.01163788,106020.0,106010.0,1.2898673]
[1750784011547,0.0022065,106020.0,106010.0,1.2709873]
[1750784011752,0.0022065,106020.0,106010.0,1.59714311]
[1750784012106,0.02106952,106020.0,106010.0,1.59714311]
[1750784012319,0.03050125,106020.0,106010.0,1.0820273]
[1750784012562,0.03993325,106020.0,106010.0,1.2452873]
[1750784012781,0.03993325,106020.0,106010.0,1.0563273]
[1750784013000,0.0022065,106020.0,106010.0,1.40758311]
[1750784013223,0.0022065,106020.0,106010.0,1.59642311]
[1750784013668,0.0022065,106020.0,106010.0,1.4958673]
[1750784013883,0.0022065,106020.0,106010.0,1.82202311]
[1750784014089,0.0032065,106020.0,106010.0,1.82202311]
[1750784014508,0.0032065,106020.0,106010.0,1.4958673]
[1750784014719,0.03906124,106030.0,106020.0,0.71373261]
[1750784014948,0.03919874,106030.0,106020.0,0.80923447]
[1750784015163,0.0203375,106030.0,106020.0,1.33979028]
[1750784015375,0.0203375,106030.0,106020.0,1.31259028]
[1750784015792,0.0203375,106030.0,106020.0,1.48859028]
[1750784016004,0.0223375,106030.0,106020.0,1.48859028]
[1750784017045,0.0223375,106030.0,106020.0,1.67727028]
[1750784017253,0.0223375,106030.0,106020.0,1.35111447]
[1750784017469,0.0223375,106030.0,106020.0,1.67727028]
[1750784018254,0.0213375,106030.0,106020.0,1.67727028]
[1750784018653,0.0203375,106030.0,106020.0,1.67727028]
[1750784019490,0.0203375,106030.0,106020.0,1.71323028]
[1750784019977,0.0203375,106030.0,106020.0,1.71523028]
[1750784021754,0.0203375,106030.0,106020.0,1.74113028]
[1750784022875,0.0203375,106030.0,106020.0,2.06728609]
[1750784023085,0.0203375,106030.0,106020.0,1.74113028]
[1750784023278,0.0203375,106030.0,106020.0,1.76945028]
[1750784023712,0.0203375,106030.0,106020.0,1.19265447]
[1750784023911,0.0203375,106030.0,106020.0,1.76925028]
[1750784024322,0.0203375,106030.0,106020.0,1.4714671]
[1750784024520,0.0203375,106030.0,106020.0,1.79762291]
[1750784025011,0.0203375,106030.0,106020.0,1.4714671]
[1750784025199,0.0203375,106030.0,106020.0,1.79762291]
[1750784025769,0.5687944,106060.0,106050.0,0.33579771]
[1750784026592,0.58333525,106060.0,106050.0,0.33579771]
[1750784026798,0.92333525,106060.0,106050.0,0.33579771]
[1750784026997,0.59717944,106060.0,106050.0,0.33579771]
[1750784027194,1.11145525,106060.0,106050.0,0.33579771]
[1750784027421,1.11145525,106060.0,106050.0,0.33679771]
[1750784027626,0.92333525,106060.0,106050.0,0.33679771]
[1750784027835,0.77141525,106060.0,106050.0,0.52538799]
[1750784028071,0.44521944,106060.0,106050.0,0.52538799]
[1750784028278,0.58338107,106060.0,106050.0,0.54424692]
[1750784028508,0.61166631,106060.0,106050.0,0.5348175]
[1750784028725,0.2855105,106060.0,106050.0,0.54424692]
[1750784028900,0.61166631,106060.0,106050.0,0.54424692]
[1750784029099,0.61166631,106060.0,106050.0,0.5348175]
[1750784029298,0.58707585,106060.0,106050.0,0.5348175]
[1750784029457,0.77564835,106060.0,106050.0,0.52538799]
[1750784029654,1.21626288,106060.0,106050.0,0.33679771]
[1750784032862,1.54241869,106060.0,106050.0,0.33679771]
[1750784033606,1.22508476,106060.0,106050.0,0.33679771]
[1750784034737,1.21626288,106060.0,106050.0,0.33679771]
[1750784034967,1.22508483,106060.0,106050.0,0.33679771]
[1750784035377,1.21626288,106060.0,106050.0,0.33679771]
[1750784037623,1.21582288,106060.0,106050.0,0.33679771]
[1750784038155,0.88966707,106060.0,106050.0,0.33679771]
[1750784038330,1.21582288,106060.0,106050.0,0.33679771]
[1750784038814,0.88966707,106060.0,106050.0,0.33679771]
[1750784039005,1.21582288,106060.0,106050.0,0.33679771]
[1750784041386,0.64826707,106060.0,106050.0,0.33679771]
[1750784041587,0.91678017,106060.0,106050.0,0.33679771]
[1750784042003,1.02682288,106060.0,106050.0,0.33679771]
[1750784046567,1.06604102,106060.0,106050.0,0.33679771]
[1750784047392,1.09334102,106060.0,106050.0,0.33679771]
[1750784047600,1.11854102,106060.0,106050.0,0.33679771]
[1750784047804,1.09334102,106060.0,106050.0,0.33679771]
[1750784048391,1.11854102,106060.0,106050.0,0.33679771]
[1750784050248,0.21708071,106060.0,106050.0,0.59624683]
[1750784050473,0.52438026,106060.0,106050.0,0.36379771]
[1750784050680,0.52438026,106060.0,106050.0,0.33679771]
[1750784050893,0.71134026,106060.0,106050.0,0.33679771]
[1750784051101,0.52438026,106060.0,106050.0,0.33679771]
[1750784051345,0.71130026,106060.0,106050.0,0.33679771]
[1750784051783,0.37550255,106060.0,106050.0,0.001]
[1750784052009,0.56407505,106060.0,106050.0,0.001]
[1750784052671,0.38492103,106060.0,106050.0,0.001]
[1750784052895,0.01885679,106060.0,106050.0,0.23610622]
[1750784053106,0.20742929,106060.0,106050.0,0.23374912]
[1750784053321,0.20742965,106060.0,106050.0,0.0263]
[1750784053534,0.20742965,106060.0,106050.0,0.21724739]
[1750784053737,0.20742965,106060.0,106050.0,0.22431979]
[1750784054002,0.72038546,106060.0,106050.0,0.18959028]
[1750784054215,0.72034546,106060.0,106050.0,0.18959028]
[1750784054647,1.17038817,106060.0,106050.0,0.001]
[1750784054861,1.22548817,106060.0,106050.0,0.001]
[1750784057396,0.89933236,106060.0,106050.0,0.001]
[1750784057601,1.22548817,106060.0,106050.0,0.001]
[1750784058374,1.03872817,106060.0,106050.0,0.001]
[1750784058577,1.19802817,106060.0,106050.0,0.001]
[1750784059419,1.01142817,106060.0,106050.0,0.001]
[1750784059624,1.07468631,106060.0,106050.0,0.001]
[1750784060227,0.73390965,106060.0,106050.0,0.001]
[1750784060439,0.54742965,106060.0,106050.0,0.0289]
[1750784060646,0.73390965,106060.0,106050.0,0.0289]
[1750784061045,1.06006546,106060.0,106050.0,0.0289]
[1750784062581,0.73390965,106060.0,106050.0,0.0289]
[1750784062783,1.06006546,106060.0,106050.0,0.0289]
[1750784063007,0.54742965,106060.0,106050.0,0.0289]
[1750784063211,0.54742965,106060.0,106050.0,0.22691979]
[1750784063414,0.20742965,106060.0,106050.0,0.06562951]
[1750784063614,0.19800112,106060.0,106050.0,0.06562951]
[1750784063824,0.19800112,106060.0,106050.0,0.25657698]
[1750784064030,0.19800112,106060.0,106050.0,0.26364912]
[1750784064471,0.19800112,106060.0,106050.0,0.26364921]
[1750784064892,0.1885725,106060.0,106050.0,0.0289]
[1750784065547,0.1885725,106060.0,106050.0,0.2198474]
[1750784065758,0.1885725,106060.0,106050.0,0.2269197]
[1750784066819,0.20742956,106060.0,106050.0,0.26274903]
[1750784067026,0.20742956,106060.0,106050.0,0.0553]
[1750784067236,0.20742956,106060.0,106050.0,0.2556769]
[1750784067444,0.19800112,106060.0,106050.0,0.0289]
[1750784067660,0.19800112,106060.0,106050.0,0.21749028]
[1750784067876,0.19800112,106060.0,106050.0,0.23634903]
[1750784067877,0.52415693,106060.0,106050.0,0.23634903]
[1750784068112,0.19800112,106060.0,106050.0,0.23634903]
[1750784068330,0.19800112,106060.0,106050.0,0.24577827]
[1750784068753,0.20742947,106060.0,106050.0,0.25520742]
[1750784068970,0.018856,106060.0,106050.0,0.52820822]
[1750784069229,0.03771262,106060.0,106050.0,0.52820822]
[1750784069449,0.36155571,106070.0,106060.0,0.22370112]
[1750784069665,0.55011078,106070.0,106060.0,0.0257]
[1750784070098,0.55011078,106070.0,106050.0,0.50875071]
[1750784070099,0.19800094,106060.0,106050.0,0.50875071]
[1750784070310,0.20742903,106060.0,106050.0,0.52660884]
[1750784070543,0.21685765,106060.0,106050.0,0.52660884]
[1750784070767,0.20742956,106060.0,106050.0,0.33025071]
[1750784070995,0.20742956,106060.0,106050.0,0.21589028]
[1750784071206,0.01885662,106060.0,106050.0,0.27017756]
[1750784071421,0.02828444,106060.0,106050.0,0.36567942]
[1750784071634,0.55953745,106070.0,106060.0,0.27015773]
[1750784071870,0.55953745,106070.0,106060.0,0.36565959]
[1750784072083,0.55953745,106070.0,106060.0,0.37508777]
[1750784072288,0.55953745,106070.0,106060.0,0.26072947]
[1750784072566,0.55011034,106070.0,106060.0,0.27015773]
[1750784072771,0.00270069,106070.0,106060.0,1.0972434]
[1750784073016,0.00270069,106070.0,106060.0,0.62608759]
[1750784073236,0.01212771,106070.0,106060.0,0.87204759]
[1750784073664,0.01212771,106070.0,106060.0,0.87104759]
[1750784073876,0.02155491,106070.0,106060.0,0.87104759]
[1750784074435,0.03098229,106070.0,106060.0,0.87104759]
[1750784074639,0.03098229,106070.0,106060.0,1.02104759]
[1750784074847,0.22896456,106070.0,106060.0,0.24880186]
[1750784075102,0.22896456,106070.0,106060.0,0.6066428]
[1750784075103,0.22053807,106070.0,106060.0,0.6066428]
[1750784075226,0.22053807,106070.0,106060.0,0.59721436]
[1750784075428,0.21111069,106070.0,106060.0,0.61607151]
[1750784075633,0.21111069,106070.0,106060.0,0.62549995]
[1750784076374,0.21111069,106070.0,106060.0,0.1273]
[1750784076591,0.21211069,106070.0,106060.0,0.2858]
[1750784076901,0.21211069,106070.0,106060.0,0.48380112]
[1750784077091,0.21211069,106070.0,106060.0,0.28572]
[1750784077840,0.21211069,106070.0,106060.0,0.1]
[1750784079853,0.55211069,106070.0,106060.0,0.1]
[1750784081659,0.58111069,106070.0,106060.0,0.1]
[1750784085017,0.35412771,106070.0,106060.0,0.3156725]
[1750784085244,0.36355473,106070.0,106060.0,0.37365729]
[1750784085464,0.37298202,106070.0,106060.0,0.37365729]
[1750784085920,0.38240948,106070.0,106060.0,0.38308538]
[1750784086134,0.38240948,106070.0,106060.0,0.36422929]
[1750784086350,0.57096491,106070.0,106060.0,0.32510103]
[1750784086602,0.55211051,106070.0,106060.0,0.1]
[1750784087087,0.55211051,106070.0,106060.0,0.2885725]
[1750784087306,0.55211051,106070.0,106060.0,0.1]
[1750784088444,0.55211051,106070.0,106060.0,0.29800112]
[1750784088662,0.55211051,106070.0,106060.0,0.30742947]
[1750784088868,0.3729829,106070.0,106060.0,0.33682947]
[1750784089077,0.3729829,106070.0,106060.0,0.34625773]
[1750784089514,0.3729829,106070.0,106060.0,0.3179725]
[1750784089723,0.38241063,106070.0,106060.0,0.32740103]
[1750784089934,0.38241063,106070.0,106060.0,0.3179725]
[1750784090137,0.56153815,106070.0,106060.0,0.3179725]
[1750784090552,0.56153815,106070.0,106060.0,0.29800112]
[1750784091190,0.56153815,106070.0,106060.0,0.32740112]
[1750784091637,0.37298193,106070.0,106060.0,0.34625791]
[1750784091860,0.38240939,106070.0,106060.0,0.36511418]
[1750784092206,0.35412762,106070.0,106060.0,0.46061542]
[1750784092228,0.37298211,106070.0,106060.0,0.48951542]
[1750784092675,0.37298202,106070.0,106060.0,0.48008742]
[1750784092910,0.3918373,106070.0,106060.0,0.46123115]
[1750784093148,0.38240957,106070.0,106060.0,0.47065933]
[1750784094214,0.38240957,106070.0,106060.0,0.48008742]
[1750784094215,0.35298202,106070.0,106060.0,0.48008742]
[1750784094358,0.36240948,106070.0,106060.0,0.66512742]
[1750784094830,0.3624094,106070.0,106060.0,0.66512742]
[1750784095034,0.22650218,106080.0,106070.0,0.44645472]
[1750784095208,0.20765001,106080.0,106070.0,0.18855472]
[1750784095526,0.20765001,106080.0,106070.0,0.19091138]
[1750784095995,0.00942755,106070.0,106060.0,0.22690094]
[1750784096205,0.0471367,106070.0,106060.0,0.51186094]
[1750784096410,0.03770897,106070.0,106060.0,0.52128929]
[1750784096616,0.0471367,106070.0,106060.0,0.51186094]
[1750784096821,0.03770888,106070.0,106060.0,0.53071738]
[1750784097242,0.02828142,106070.0,106060.0,0.54014538]
[1750784097454,0.00942693,106070.0,106060.0,0.81274724]
[1750784097674,0.3506864,106080.0,106070.0,0.42668236]
[1750784097888,0.36953911,106080.0,106070.0,0.5316116]
[1750784098109,0.36953911,106080.0,106070.0,0.54103889]
[1750784098329,0.36011253,106080.0,106070.0,0.55046609]
[1750784098551,0.36011253,106080.0,106070.0,0.5598932]
[1750784098758,0.36853911,106080.0,106070.0,0.55046609]
[1750784099179,0.34968613,106080.0,106070.0,0.71833889]
[1750784099390,0.34026,106080.0,106070.0,0.72776609]
[1750784099599,0.34968622,106080.0,106070.0,0.7371932]
[1750784100053,0.34968622,106080.0,106070.0,0.69948422]
[1750784100275,0.34026,106080.0,106070.0,1.04449452]
[1750784100479,0.34026,106080.0,106070.0,0.7089116]
[1750784100934,0.34026,106080.0,106070.0,0.71833871]
[1750784101157,0.34226,106080.0,106070.0,0.71833871]
[1750784101375,0.36111235,106080.0,106070.0,0.69948422]
[1750784101595,0.37053884,106080.0,106070.0,0.69948422]
[1750784101811,0.36111235,106080.0,106070.0,0.55891177]
[1750784102017,0.37053875,106080.0,106070.0,0.53161177]
[1750784102259,0.35168604,106080.0,106070.0,0.54103906]
[1750784102494,0.35168604,106080.0,106070.0,0.55046617]
[1750784102713,0.36111235,106080.0,106070.0,0.51275658]
[1750784102936,0.54022361,106080.0,106070.0,0.09550186]
[1750784103153,0.00942782,106060.0,106050.0,0.93898716]
[1750784103367,0.00942782,106060.0,106050.0,1.46064483]
[1750784103613,0.3682823,106070.0,106060.0,0.1885725]
[1750784103844,0.36828239,106070.0,106060.0,0.43213151]
[1750784104056,0.55683711,106070.0,106060.0,0.43213151]
[1750784104264,0.55683711,106070.0,106060.0,0.41327436]
[1750784104482,0.55683711,106070.0,106060.0,0.57818298]
[1750784104825,0.54740991,106070.0,106060.0,0.38407436]
[1750784105034,0.54740991,106070.0,106060.0,0.39350289]
[1750784105236,0.54840991,106070.0,106060.0,0.60674289]
[1750784105486,0.54840991,106070.0,106060.0,0.56871436]
[1750784105861,0.54840991,106070.0,106060.0,0.71871436]
[1750784106065,0.54840991,106070.0,106060.0,0.43464]
[1750784107067,0.54840991,106070.0,106060.0,0.25]
[1750784107269,0.54840991,106070.0,106060.0,0.43464]
[1750784107534,0.57690991,106070.0,106060.0,0.43464]
[1750784107952,0.57690991,106070.0,106060.0,0.28464]
[1750784108400,0.90306572,106070.0,106060.0,0.1]
[1750784108623,0.93176572,106070.0,106060.0,0.1]
[1750784109227,0.94630657,106070.0,106060.0,0.1]
[1750784110174,0.62015076,106070.0,106060.0,0.1]
[1750784110357,1.13086657,106070.0,106060.0,0.1]
[1750784111165,0.80471076,106070.0,106060.0,0.1]
[1750784111335,1.13086657,106070.0,106060.0,0.1]
[1750784113211,0.80471076,106070.0,106060.0,0.1]
[1750784113431,1.13086657,106070.0,106060.0,0.1]
[1750784114283,1.22636843,106070.0,106060.0,0.1]
[1750784115182,1.04180843,106070.0,106060.0,0.1]
[1750784115400,1.22628843,106070.0,106060.0,0.1]
[1750784115613,1.04180843,106070.0,106060.0,0.1]
[1750784115827,0.77593076,106070.0,106060.0,0.1]
[1750784117789,0.77585076,106070.0,106060.0,0.1]
[1750784118454,1.10200657,106070.0,106060.0,0.1]
[1750784119223,0.77585076,106070.0,106060.0,0.1]
[1750784119924,0.59145076,106070.0,106060.0,0.1]
[1750784120152,0.77585076,106070.0,106060.0,0.1]
[1750784121345,1.10200657,106070.0,106060.0,0.1]
[1750784121775,1.10192657,106070.0,106060.0,0.1]
[1750784122118,1.13172657,106070.0,106060.0,0.1]
[1750784125096,1.10192657,106070.0,106060.0,0.1]
[1750784126354,1.12952657,106070.0,106060.0,0.1]
[1750784127169,0.80337076,106070.0,106060.0,0.1]
[1750784127408,1.12952657,106070.0,106060.0,0.1]
[1750784127666,1.22502843,106070.0,106060.0,0.1]
[1750784127876,0.89875262,106070.0,106060.0,0.1]
[1750784129284,1.19730843,106070.0,106060.0,0.1]
[1750784130500,1.22700843,106070.0,106060.0,0.1]
[1750784133357,0.90085262,106070.0,106060.0,0.1]
[1750784133573,1.22700843,106070.0,106060.0,0.1]
[1750784134444,0.71665262,106070.0,106060.0,0.1]
[1750784135069,1.04280843,106070.0,106060.0,0.1]
[1750784135271,1.01310843,106070.0,106060.0,0.1]
[1750784135477,0.68695262,106070.0,106060.0,0.1]
[1750784135681,0.65945262,106070.0,106060.0,0.1]
[1750784138192,0.98560843,106070.0,106060.0,0.1]
[1750784138601,0.65945262,106070.0,106060.0,0.1]
[1750784139415,0.68795262,106070.0,106060.0,0.1]
[1750784141623,0.68765262,106070.0,106060.0,0.1]
[1750784143330,0.65945262,106070.0,106060.0,0.1]
[1750784143917,0.68905262,106070.0,106060.0,0.1]
[1750784144118,1.01520843,106070.0,106060.0,0.1]
[1750784144454,0.65945262,106070.0,106060.0,0.1]
[1750784144657,0.65945262,106070.0,106060.0,0.1281]
[1750784144859,0.65945262,106070.0,106060.0,0.1]
[1750784145060,0.98560843,106070.0,106060.0,0.1]
[1750784145507,0.65945262,106070.0,106060.0,0.1]
[1750784146232,0.68705262,106070.0,106060.0,0.1]
[1750784151449,0.65945262,106070.0,106060.0,0.1]
[1750784152092,0.68855262,106070.0,106060.0,0.1]
[1750784157664,1.01470843,106070.0,106060.0,0.1]
[1750784158344,0.68855262,106070.0,106060.0,0.1]
[1750784158546,1.13248361,106070.0,106060.0,0.1]
[1750784158855,0.21256064,106050.0,106040.0,0.21580745]
[1750784159034,0.21256064,106050.0,106040.0,0.31585327]
[1750784159172,0.21256064,106050.0,106040.0,0.12724582]
[1750784159849,0.21256064,106050.0,106040.0,0.31585389]
[1750784160025,0.21256064,106050.0,106040.0,0.28865389]
[1750784160245,0.21256064,106050.0,106040.0,0.31605389]
[1750784160491,0.21256064,106050.0,106040.0,0.12944582]
[1750784160683,0.21256064,106050.0,106040.0,0.29065389]
[1750784160967,0.21256064,106050.0,106040.0,0.67050045]
[1750784161150,0.21256064,106050.0,106040.0,0.3349146]
[1750784161151,0.22198988,106050.0,106040.0,0.3349146]
[1750784161290,0.22198988,106050.0,106040.0,0.34434482]
[1750784161494,0.22198988,106050.0,106040.0,0.35377495]
[1750784162118,0.22198988,106050.0,106040.0,0.34434482]
[1750784162317,0.20313113,106050.0,106040.0,0.10004582]
[1750784162942,0.54313113,106050.0,106040.0,0.10004582]
[1750784163368,0.54313113,106050.0,106040.0,0.12954582]
[1750784164541,0.54313113,106050.0,106040.0,0.10004582]
[1750784173166,0.35454085,106050.0,106040.0,0.6424097]
[1750784173406,0.0094288,106050.0,106040.0,0.69859983]
[1750784173843,0.01885786,106050.0,106040.0,0.93999983]
[1750784174476,0.0094288,106050.0,106040.0,0.93999983]
[1750784174898,0.01885778,106050.0,106040.0,0.93999983]
[1750784175102,0.01885778,106050.0,106040.0,0.61384402]
[1750784175301,0.01885778,106050.0,106040.0,0.93999983]
[1750784175519,0.21685973,106060.0,106050.0,0.20744867]
[1750784175728,0.55685973,106060.0,106050.0,0.26294885]
[1750784176600,0.55885973,106060.0,106050.0,0.27237791]
[1750784176775,0.56085973,106060.0,106050.0,0.26294885]
[1750784177150,0.56085973,106060.0,106050.0,0.272378]
[1750784177356,0.55143147,106060.0,106050.0,0.26294885]
[1750784177554,0.55143147,106060.0,106050.0,0.25351961]
[1750784177759,0.54200294,106060.0,106050.0,0.25351961]
[1750784178000,0.36285635,106060.0,106050.0,0.27237765]
[1750784178205,0.344,106060.0,106050.0,0.80789846]
[1750784178435,0.344,106060.0,106050.0,1.05340032]
[1750784178785,0.344,106060.0,106050.0,1.15340032]
[1750784178990,0.344,106060.0,106050.0,0.82724451]
[1750784179191,0.35142791,106060.0,106050.0,1.15340032]
[1750784179389,0.35142782,106060.0,106050.0,1.15340032]
[1750784180063,0.35885573,106060.0,106050.0,1.15340032]
[1750784180218,0.34942782,106060.0,106050.0,1.15340032]
[1750784180908,0.34,106060.0,106050.0,1.15340032]
[1750784181104,0.00942711,106070.0,106060.0,0.21685729]
[1750784181310,0.36828204,106070.0,106060.0,0.44722929]
[1750784181559,0.37770977,106070.0,106060.0,0.45665747]
[1750784181759,0.36828204,106070.0,106060.0,0.46608556]
[1750784181961,0.36828204,106070.0,106060.0,0.47551356]
[1750784182161,0.36828204,106070.0,106060.0,0.46608556]
[1750784182352,0.88299319,106070.0,106060.0,0.4297325]
[1750784182536,0.87556581,106070.0,106060.0,0.24116]
[1750784182786,0.55866672,106070.0,106060.0,0.4297325]
[1750784182926,0.55866672,106070.0,106060.0,0.24116]
[1750784183137,0.55866672,106070.0,106060.0,0.18296]
[1750784183354,0.56066672,106070.0,106060.0,0.18296]
[1750784183599,0.56066672,106070.0,106060.0,0.38096112]
[1750784184024,0.55141,106070.0,106060.0,0.19238862]
[1750784184229,0.55141,106070.0,106060.0,0.38092112]
[1750784184382,0.36285484,106070.0,106060.0,0.41784947]
[1750784184601,0.56083729,106070.0,106060.0,0.41784947]
[1750784184804,0.56083729,106070.0,106060.0,0.42727773]
[1750784185036,0.56083729,106070.0,106060.0,0.25378591]
[1750784185239,0.56083729,106070.0,106060.0,0.49486591]
[1750784186054,0.56083729,106070.0,106060.0,0.48543773]
[1750784186282,0.56083729,106070.0,106060.0,0.49486591]
[1750784186578,0.56083729,106070.0,106060.0,0.504294]
[1750784186785,0.56083729,106070.0,106060.0,0.49486591]
[1750784187217,0.36285484,106070.0,106060.0,0.50429338]
[1750784187424,0.5608372,106070.0,106060.0,0.49486538]
[1750784187608,0.57026493,106070.0,106060.0,0.49486538]
[1750784187808,0.57026493,106070.0,106060.0,0.48543729]
[1750784188779,0.38171021,106070.0,106060.0,0.49486538]
[1750784189177,0.38171021,106070.0,106060.0,0.48543729]
[1750784189597,0.38171021,106070.0,106060.0,0.49486538]
[1750784189809,0.57026493,106070.0,106060.0,0.48543729]
[1750784190636,0.38171021,106070.0,106060.0,0.49486538]
[1750784190946,0.37228248,106070.0,106060.0,0.49486538]
[1750784193504,0.004,106070.0,106060.0,0.95285105]
[1750784193727,0.004,106070.0,106060.0,1.10285105]
[1750784193884,0.004,106070.0,106060.0,1.32917105]
[1750784195051,0.004,106070.0,106060.0,1.00301524]
[1750784195223,0.004,106070.0,106060.0,1.32917105]
[1750784197039,0.004,106070.0,106060.0,1.00301524]
[1750784197243,0.004,106070.0,106060.0,1.32917105]
[1750784197884,0.004,106070.0,106060.0,1.32825105]
[1750784198284,0.01342693,106070.0,106060.0,1.32825105]
[1750784198443,0.004,106070.0,106060.0,1.00209524]
[1750784198891,0.004,106070.0,106060.0,1.32825105]
[1750784199075,0.004,106070.0,106060.0,1.00209524]
[1750784199278,0.004,106070.0,106060.0,1.32825105]
[1750784199684,0.22083649,106070.0,106060.0,0.75250724]
[1750784199883,0.01885626,106060.0,106050.0,1.02381311]
[1750784200083,0.01885626,106060.0,106050.0,1.45943497]
[1750784200290,0.22628573,106060.0,106050.0,0.76519961]
[1750784200495,0.22628573,106060.0,106050.0,0.78405782]
[1750784201327,0.22628573,106060.0,106050.0,0.54397782]
[1750784201676,0.92646916,106060.0,106050.0,0.15768]
[1750784201886,0.92646916,106060.0,106050.0,0.34004]
[1750784202315,0.92646916,106060.0,106050.0,0.28236]
[1750784202496,0.60031335,106060.0,106050.0,0.28236]
[1750784202956,0.60031335,106060.0,106050.0,0.1]
[1750784203164,0.60031335,106060.0,106050.0,0.28236]
[1750784204045,0.56628556,106060.0,106050.0,0.87093372]
[1750784204267,0.37771288,106060.0,106050.0,0.88036288]
[1750784204479,0.38714141,106060.0,106050.0,1.14762288]
[1750784204913,0.57571462,106060.0,106050.0,1.13819399]
[1750784205145,0.55685809,106060.0,106050.0,0.8658797]
[1750784205369,0.54742965,106060.0,106050.0,0.84740903]
[1750784205787,0.54742965,106060.0,106050.0,0.88473827]
[1750784206007,0.54742965,106060.0,106050.0,0.2]
[1750784206283,0.93749778,106060.0,106050.0,0.2]
[1750784206491,0.61134197,106060.0,106050.0,0.2]
[1750784206918,0.58184197,106060.0,106050.0,0.38859028]
[1750784207143,0.57241335,106060.0,106050.0,0.2]
[1750784207581,0.35885662,106060.0,106050.0,0.73360484]
[1750784207766,0.36828453,106060.0,106050.0,0.98156288]
[1750784207984,0.56628556,106060.0,106050.0,0.64597818]
[1750784208150,0.56628556,106060.0,106050.0,0.66483622]
[1750784208593,0.54742947,106060.0,106050.0,0.59801979]
[1750784209003,0.53800103,106060.0,106050.0,0.59801979]
[1750784209633,0.53800103,106060.0,106050.0,0.60744921]
[1750784210083,0.5285725,106060.0,106050.0,0.60744921]
[1750784211275,0.5285725,106060.0,106050.0,0.61687854]
[1750784212076,0.5285725,106060.0,106050.0,0.64447854]
[1750784213046,0.5285725,106060.0,106050.0,0.63504921]
[1750784213255,0.85472831,106060.0,106050.0,0.2]
[1750784213464,0.92536916,106060.0,106050.0,0.43976]
[1750784213941,0.59921335,106060.0,106050.0,0.43976]
[1750784214317,0.59921335,106060.0,106050.0,0.62835028]
[1750784214573,0.59921335,106060.0,106050.0,0.43976]
[1750784214717,0.59921335,106060.0,106050.0,0.2]
[1750784214916,0.59921335,106060.0,106050.0,0.43972]
[1750784215164,0.21256046,106050.0,106040.0,4.582e-05]
[1750784215354,0.60936046,106050.0,106040.0,4.582e-05]
[1750784215571,0.70486232,106050.0,106040.0,4.582e-05]
[1750784216754,1.03101813,106050.0,106040.0,4.582e-05]
[1750784217042,0.70486232,106050.0,106040.0,4.582e-05]
[1750784217265,1.03101813,106050.0,106040.0,4.582e-05]
[1750784217503,1.03101813,106050.0,106040.0,0.00204582]
[1750784217760,1.03101813,106050.0,106040.0,4.582e-05]
[1750784217963,0.58156046,106050.0,106040.0,4.582e-05]
[1750784218384,0.58156046,106050.0,106040.0,0.00104582]
[1750784218608,0.61066046,106050.0,106040.0,0.00104582]
[1750784218828,0.55256046,106050.0,106040.0,4.582e-05]
[1750784219050,0.55256046,106050.0,106040.0,0.00304582]
[1750784219244,0.58186046,106050.0,106040.0,0.00504582]
[1750784220133,1.03261813,106050.0,106040.0,0.00504582]
[1750784220582,1.22225813,106050.0,106040.0,0.00504582]
[1750784221967,0.89610232,106050.0,106040.0,0.00504582]
[1750784222622,1.54841394,106050.0,106040.0,0.00504582]
[1750784223058,0.89610232,106050.0,106040.0,0.00504582]
[1750784223295,1.54841394,106050.0,106040.0,0.00504582]
[1750784223517,0.89610232,106050.0,106040.0,0.00504582]
[1750784223703,1.64388389,106050.0,106040.0,0.00504582]
[1750784223936,1.54841394,106050.0,106040.0,0.00504582]
[1750784224779,1.22225813,106050.0,106040.0,0.00504582]
[1750784224989,1.54841394,106050.0,106040.0,0.00504582]
[1750784225900,0.69192147,106050.0,106040.0,0.00504582]